[Event "FIDE WCCC U12 2018"]
[Site "Santiago de Compostela"]
[Date "2018.11.15"]
[Round "11"]
[White "Chen, Max"]
[Black "Tian, Eddy"]
[Result "0-1"]
[ECO "B06"]
[WhiteElo "1910"]
[BlackElo "2151"]
[Annotator "NA"]
[PlyCount "120"]
[EventDate "2018.11.04"]
[EventType "swiss"]
[EventCountry "ESP"]
[SourceTitle "playchess.com"]
[Source "ChessBase"]
[SourceQuality "1"]
[TimeControl "40/5400+30:1800+30"]

1. e4 {[%emt 0:00:00]} g6 {[%emt 0:00:00]} 2. d4 {[%emt 0:00:18]} Bg7 {[%emt 0:00:00]} 3. Nc3 {[%emt 0:00:11]} d6 {[%emt 0:00:00]} 4. f4 {[%emt 0:02:15]} a6 {[%emt 0:00:01]} 5. Nf3 {[%emt 0:01:43]} b5 {[%emt 0:00:05]} 6. a3 {[%emt 0:01:53] B06: Modern Defence} (6. Bd3 Nd7 7. a4 b4 8. Ne2 c5 9. c3 Bb7 10. O-O Ngf6 11. e5 Nd5 12. Bd2 bxc3 13. bxc3 cxd4 14. cxd4 O-O {0-1 (49) Anand,V (2759)-Nakamura,H (2769) Leuven 2018}) 6... Nd7 {[%emt 0:00:16]} 7. Be2 {[%emt 0:01:54]} Bb7 {[%emt 0:00:29]} 8. O-O {[%emt 0:01:24]} c5 {[%emt 0:01:42] LiveBook: 7 Games} 9. h3 $146 {[%emt 0:10:07]} ({Predecessor:} 9. d5 Qc7 10. Qe1 Ngf6 11. e5 Nxd5 12. e6 fxe6 13. Ng5 Nf8 {0-1 (41) Danielyan,V (2231)-Zubov,A (2614) Poti 2016}) 9... cxd4 {[%emt 0:03:13]} 10. Nxd4 {[%emt 0:00:23]} Ngf6 {[%emt 0:02:58]} 11. Bf3 {[%emt 0:01:41]} Qc7 {[%emt 0:00:54]} 12. Re1 {[%emt 0:03:27]} e5 {[%emt 0:08:17]} 13. Nb3 {[%emt 0:02:46]} exf4 {[%emt 0:02:41]} 14. Bxf4 {[%emt 0:03:15]} Ne5 {[%emt 0:00:23]} 15. Nd5 {[%emt 0:12:17]} Nxd5 {[%emt 0:00:50]} 16. exd5 {[%emt 0:00:08]} O-O {[%emt 0:00:17]} 17. c3 {[%emt 0:05:32]} Nxf3+ {[%emt 0:04:50]} 18. Qxf3 {[%emt 0:00:55]} a5 {[%emt 0:02:04]} 19. Rad1 {[%emt 0:03:00]} a4 {[%emt 0:05:01]} 20. Nc1 {[%emt 0:04:41]} Rfe8 {[%emt 0:01:06]} 21. Nd3 {[%emt 0:04:45]} f5 {[%emt 0:07:07]} 22. Nb4 {[%emt 0:01:18]} Be5 {[%emt 0:02:01]} 23. Kh1 {[%emt 0:03:39]} Qc4 {[%emt 0:03:36]} 24. Bh2 {[%emt 0:03:54]} Rad8 {[%emt 0:02:27]} 25. Re3 {[%emt 0:03:01]} Re7 {[%emt 0:05:19]} 26. Rde1 {[%emt 0:02:54]} Rde8 {[%emt 0:00:28]} 27. Qd1 {[%emt 0:01:19]} Kf7 {[%emt 0:07:01]} 28. Qd2 {[%emt 0:11:22]} Qh4 {[%emt 0:09:19]} 29. Bxe5 {[%emt 0:07:52]} Rxe5 {[%emt 0:00:17]} 30. Rxe5 {[%emt 0:00:10]} dxe5 {[%emt 0:06:14]} 31. Rd1 {[%emt 0:02:47]} Qe4 {[%emt 0:04:36]} 32. d6 {[%emt 0:03:40]} Rd8 {[%emt 0:00:59]} 33. d7 {[%emt 0:01:25]} Bc6 {[%emt 0:01:41]} 34. Re1 {[%emt 0:00:24]} Rxd7 {[%emt 0:00:56]} 35. Qxd7+ {[%emt 0:00:09]} (35. Qf2 $11 Qc4 36. Nxc6 Qxc6 37. Rxe5) 35... Bxd7 {[%emt 0:00:04]} 36. Rxe4 {[%emt 0:00:04]} fxe4 {[%emt 0:00:06]} 37. Kg1 {[%emt 0:00:02]} Ke6 {[%emt 0:00:47]} 38. Kf2 {[%emt 0:00:05]} Bc8 {[%emt 0:00:45]} 39. Nc6 {[%emt 0:01:44]} Kd6 {[%emt 0:00:55]} 40. Nd8 {[%emt 0:00:00]} (40. Nb4 $142 Kc5 41. Na2) 40... Be6 {[%emt 0:00:00]} 41. Nb7+ {[%emt 0:01:28]} Kc6 {[%emt 0:02:50]} 42. Nd8+ {[%emt 0:00:11]} Kd7 {[%emt 0:00:05]} 43. Nb7 {[%emt 0:00:05]} Bd5 {[%emt 0:00:08]} 44. Nc5+ {[%emt 0:00:07]} Kd6 {[%emt 0:00:09]} 45. Na6 {[%emt 0:00:10]} Bb7 {[%emt 0:00:04]} 46. Nb4 {[%emt 0:00:19]} Kc5 {[%emt 0:00:04]} 47. Na2 {[%emt 0:00:13] [#]} e3+ $1 {[%emt 0:00:38]} 48. Kxe3 {[%emt 0:01:24]} Bxg2 {[%emt 0:00:13]} 49. h4 {[%emt 0:00:09]} Bd5 $19 {[%emt 0:00:11]} 50. Nc1 {[%emt 0:00:24]} Bc4 {[%emt 0:00:03]} 51. Kf3 {[%emt 0:01:29]} Kd5 {[%emt 0:00:12]} 52. Kg4 {[%emt 0:00:17]} e4 {[%emt 0:00:05]} 53. Kf4 {[%emt 0:00:21]} h6 {[%emt 0:00:03]} 54. Kg4 {[%emt 0:00:19]} Ke5 {[%emt 0:00:06]} 55. h5 {[%emt 0:00:18]} g5 {[%emt 0:00:03]} 56. Kg3 {[%emt 0:00:06]} Kf5 {[%emt 0:00:03]} 57. Kf2 {[%emt 0:00:06]} Kf4 {[%emt 0:00:03]} 58. Ke1 {[%emt 0:00:07]} e3 {[%emt 0:00:08]} 59. Kd1 {[%emt 0:00:07]} Kf3 {[%emt 0:00:03]} 60. Ke1 {[%emt 0:00:12]} g4 {[%emt 0:00:28]} 0-1

[Event "FIDE WCCC U12 2018"]
[Site "Santiago de Compostela"]
[Date "2018.11.15"]
[Round "11"]
[White "Nathan, Krishna"]
[Black "Mekhane, Adam"]
[Result "1/2-1/2"]
[ECO "C44"]
[WhiteElo "1895"]
[BlackElo "2065"]
[Annotator "NA"]
[PlyCount "90"]
[EventDate "2018.11.04"]
[EventType "swiss"]
[EventCountry "ESP"]
[SourceTitle "playchess.com"]
[Source "ChessBase"]
[SourceQuality "1"]
[TimeControl "40/5400+30:1800+30"]

1. e4 {[%emt 0:00:00]} e5 {[%emt 0:00:00]} 2. Nf3 {[%emt 0:00:00]} Nc6 {[%emt 0:00:00]} 3. d4 {[%emt 0:00:00]} exd4 {[%emt 0:00:00]} 4. Nxd4 {[%emt 0:00:00]} Bb4+ {[%emt 0:00:00]} 5. c3 {[%emt 0:00:02]} Bc5 {[%emt 0:00:00]} 6. Be3 {[%emt 0:00:03]} Bb6 {[%emt 0:00:00]} 7. Nf5 {[%emt 0:00:07]} Bxe3 {[%emt 0:00:05] LiveBook: 122 Games C45: Scotch Game} (7... g6 8. Bxb6 axb6 9. Ne3 Nf6 10. f3 O-O 11. c4 Nh5 12. Qd2 f5 13. Nc3 f4 14. Ned5 Qh4+ 15. Qf2 {1-0 (30) Yu,Y (2729)-Bu,X (2705) Doha 2016}) 8. Nxe3 {[%emt 0:00:02]} Nge7 {[%emt 0:00:10]} 9. g3 {[%emt 0:00:12]} O-O {[%emt 0:01:50]} 10. Bg2 {[%emt 0:00:15]} d6 {[%emt 0:01:36]} 11. c4 {[%emt 0:01:48]} f5 {[%emt 0:07:02]} 12. f4 $146 {[%emt 0:01:39]} ({Predecessor:} 12. exf5 Nxf5 13. Nxf5 Bxf5 14. O-O Qd7 15. Nc3 {1-0 (41) Duda,J (2456)-Mons,L (2332) Maribor 2012}) 12... Qe8 {[%emt 0:06:14]} 13. O-O {[%emt 0:06:14]} fxe4 {[%emt 0:04:42]} 14. Bxe4 {[%emt 0:00:37]} (14. Nc3 $16) 14... Nd5 $2 15. Bxd5+ {[%emt 0:00:54]} Kh8 {[%emt 0:03:01]} 16. Nf5 $2 (16. Re1 $18) 16... Bxf5 {[%emt 0:03:15]} 17. Qd2 {[%emt 0:04:13]} Qh5 18. Nc3 {[%emt 0:05:24]} Rae8 {[%emt 0:14:13]} 19. Bf3 {[%emt 0:03:59]} Bg4 {[%emt 0:06:50]} 20. Bxg4 {[%emt 0:01:45]} Qxg4 {[%emt 0:00:26]} 21. Rae1 {[%emt 0:02:15]} Qh5 {[%emt 0:09:22]} 22. Nd5 {[%emt 0:08:23]} Qf7 {[%emt 0:05:39]} 23. Qc3 {[%emt 0:09:39]} Nb8 {[%emt 0:05:10]} 24. f5 {[%emt 0:01:19]} Rxe1 {[%emt 0:03:26]} 25. Qxe1 {[%emt 0:02:51]} Re8 {[%emt 0:05:57]} 26. Qc3 c6 27. Ne3 {[%emt 0:04:26]} Nd7 {[%emt 0:02:39]} 28. Ng2 {[%emt 0:09:07]} d5 {[%emt 0:05:36]} 29. cxd5 {[%emt 0:02:31]} Qxd5 {[%emt 0:00:39]} 30. a3 {[%emt 0:04:16]} Nf6 {[%emt 0:01:36]} 31. Qc2 {[%emt 0:04:16]} Ne4 {[%emt 0:05:38]} 32. Nh4 {[%emt 0:02:25]} Nd2 {[%emt 0:03:01]} 33. Rc1 {[%emt 0:06:52]} Re2 {[%emt 0:03:23]} 34. Qc3 {[%emt 0:02:30]} Ne4 {[%emt 0:01:36]} 35. Qb4 {[%emt 0:02:50] [#]} c5 $19 {[%emt 0:01:11]} 36. Qa4 {[%emt 0:01:44]} Ng5 {[%emt 0:00:43]} 37. Kf1 {[%emt 0:11:14]} Qd2 {[%emt 0:02:45]} 38. Qf4 {[%emt 0:01:31]} Qd3 {[%emt 0:00:34]} 39. Qxg5 {[%emt 0:02:19]} Rc2+ {[%emt 0:00:33]} 40. Kg1 {[%emt 0:00:00]} Qd4+ {[%emt 0:00:00]} 41. Kh1 {[%emt 0:00:47]} Qe4+ 42. Kg1 Qd4+ 43. Kh1 Qe4+ 44. Kg1 Qd4+ 45. Kh1 h6 1/2-1/2

[Event "FIDE WCCC U12 2018"]
[Site "Santiago de Compostela"]
[Date "2018.11.15"]
[Round "11"]
[White "Amilal Munkhdalai"]
[Black "Droin, Augustin"]
[Result "1-0"]
[ECO "B92"]
[WhiteElo "1864"]
[BlackElo "2155"]
[Annotator "NA"]
[PlyCount "131"]
[EventDate "2018.11.04"]
[EventType "swiss"]
[EventCountry "ESP"]
[SourceTitle "playchess.com"]
[Source "ChessBase"]
[SourceQuality "1"]
[TimeControl "40/5400+30:1800+30"]

1. e4 {[%emt 0:00:00]} c5 {[%emt 0:00:00]} 2. Nf3 {[%emt 0:00:00]} d6 {[%emt 0:00:00]} 3. d4 {[%emt 0:00:00]} cxd4 {[%emt 0:00:00]} 4. Nxd4 {[%emt 0:00:00]} Nf6 {[%emt 0:00:01]} 5. Nc3 {[%emt 0:00:00]} a6 {[%emt 0:00:10]} 6. Be2 {[%emt 0:00:04]} e5 {[%emt 0:01:48]} 7. Nf3 {[%emt 0:00:05]} Be7 {[%emt 0:00:30]} 8. Bg5 {[%emt 0:00:11]} Be6 {[%emt 0:02:12]} 9. Bxf6 {[%emt 0:00:17]} Bxf6 {[%emt 0:00:08]} 10. O-O {[%emt 0:02:38]} O-O {[%emt 0:01:12]} 11. Nd5 {[%emt 0:01:22] B92: Sicilian Najdorf: 6 Be2} Nd7 {[%emt 0:03:02] LiveBook: 13 Games} 12. c3 {[%emt 0:04:12]} Rc8 {[%emt 0:03:07]} 13. Qd2 {[%emt 0:10:09] [#]} Rc5 $146 {[%emt 0:04:17]} ({Predecessor:} 13... Bxd5 14. Qxd5 Qc7 15. Rfd1 Be7 16. Nd2 b5 17. Nf1 Nf6 18. Qd3 Qb7 {½-½ (78) Womacka,M (2434)-Huschenbeth,N (2596) Tegernsee 2017}) 14. c4 {[%emt 0:05:15]} Bxd5 {[%emt 0:02:37]} 15. cxd5 {[%emt 0:02:12]} Qc7 {[%emt 0:01:05]} 16. Rfc1 {[%emt 0:10:47]} Rc8 {[%emt 0:00:36]} 17. Rxc5 {[%emt 0:00:11]} Qxc5 {[%emt 0:00:07]} 18. Ne1 {[%emt 0:04:11]} Bd8 {[%emt 0:02:21]} 19. Bg4 {[%emt 0:03:06]} Ba5 {[%emt 0:04:29]} 20. Qe2 {[%emt 0:01:43]} Rc7 {[%emt 0:03:34]} 21. Nd3 {[%emt 0:02:24]} Qd4 {[%emt 0:00:58]} 22. Bxd7 {[%emt 0:00:21]} Rxd7 {[%emt 0:00:12]} 23. Rc1 {[%emt 0:03:46]} g6 {[%emt 0:00:45]} 24. h3 {[%emt 0:08:33]} Kg7 {[%emt 0:04:17]} 25. Rc8 {[%emt 0:19:43]} Rc7 {[%emt 0:04:46]} 26. Rxc7 {[%emt 0:00:10]} Bxc7 {[%emt 0:00:04]} 27. Ne1 {[%emt 0:06:19]} Bb6 {[%emt 0:02:26]} 28. Qc2 {[%emt 0:02:48]} f5 {[%emt 0:02:33]} 29. exf5 {[%emt 0:03:10]} Qxd5 {[%emt 0:00:32]} 30. fxg6 {[%emt 0:00:32]} hxg6 {[%emt 0:00:11]} 31. b3 {[%emt 0:02:23]} Qc6 {[%emt 0:07:30]} 32. Qxc6 {[%emt 0:02:51]} bxc6 {[%emt 0:00:03]} 33. Kf1 {[%emt 0:00:07]} Kf6 {[%emt 0:00:10]} 34. Ke2 {[%emt 0:02:02]} d5 {[%emt 0:00:25]} 35. f3 {[%emt 0:02:10]} a5 {[%emt 0:00:45]} 36. Nd3 {[%emt 0:01:48]} Bd4 {[%emt 0:00:30]} 37. h4 {[%emt 0:00:13]} g5 {[%emt 0:02:22]} 38. hxg5+ {[%emt 0:01:10]} Kxg5 {[%emt 0:00:07]} 39. g3 {[%emt 0:00:21]} Kf5 {[%emt 0:03:05]} 40. Ne1 {[%emt 0:00:00]} Bc5 {[%emt 0:00:00]} 41. Ng2 {[%emt 0:04:31]} Ke6 {[%emt 0:06:39]} 42. Ne3 {[%emt 0:05:40]} Bd6 {[%emt 0:04:15]} 43. Kd3 {[%emt 0:00:39]} Bb4 {[%emt 0:00:31]} 44. Ng2 {[%emt 0:02:19]} Kf6 {[%emt 0:01:04]} 45. Ke3 {[%emt 0:04:25]} Bc5+ {[%emt 0:00:22]} 46. Ke2 {[%emt 0:00:13]} Ke6 {[%emt 0:01:34]} 47. Ne3 {[%emt 0:00:49]} Ba3 {[%emt 0:01:41]} 48. Kd3 {[%emt 0:00:20]} Kd6 {[%emt 0:00:18]} 49. Nf5+ {[%emt 0:01:11]} Kc5 {[%emt 0:01:01]} 50. Nh6 {[%emt 0:03:21]} Kd6 {[%emt 0:02:12]} 51. Nf5+ {[%emt 0:00:26]} Ke6 {[%emt 0:00:34]} 52. Ne3 {[%emt 0:00:05]} Bb4 {[%emt 0:00:04]} 53. Ng2 {[%emt 0:00:05]} a4 {[%emt 0:00:56]} 54. bxa4 {[%emt 0:03:17]} c5 {[%emt 0:00:07]} 55. Ne3 {[%emt 0:00:38]} Be1 {[%emt 0:02:27]} 56. g4 {[%emt 0:00:08]} Ba5 {[%emt 0:00:27]} 57. g5 {[%emt 0:02:28]} c4+ {[%emt 0:00:23]} 58. Ke2 {[%emt 0:01:26]} c3 {[%emt 0:05:10]} 59. Kd3 {[%emt 0:03:11]} Bb6 {[%emt 0:00:21]} 60. g6 {[%emt 0:01:12]} e4+ {[%emt 0:03:10]} 61. fxe4 {[%emt 0:00:30]} dxe4+ {[%emt 0:00:30]} 62. Kxe4 {[%emt 0:00:05]} Ba7 $18 {[%emt 0:00:23]} 63. a5 {[%emt 0:00:47]} Kf6 {[%emt 0:00:37]} 64. Nd5+ {[%emt 0:00:15]} Kxg6 {[%emt 0:00:03]} 65. Nxc3 {[%emt 0:00:06]} Kf6 {[%emt 0:00:04]} 66. Nb5 {[%emt 0:00:13]} 1-0

[Event "FIDE WCCC U12 2018"]
[Site "Santiago de Compostela"]
[Date "2018.11.15"]
[Round "11"]
[White "Rostomyan, Mikayel"]
[Black "Pavesi, Brando"]
[Result "0-1"]
[ECO "D35"]
[WhiteElo "1565"]
[BlackElo "2073"]
[Annotator "NA"]
[PlyCount "58"]
[EventDate "2018.11.04"]
[EventType "swiss"]
[EventCountry "ESP"]
[SourceTitle "playchess.com"]
[Source "ChessBase"]
[SourceQuality "1"]
[TimeControl "40/5400+30:1800+30"]

{[%evp 13,58,22,32767,25,32,12,31,29,21,10,19,10,24,14,32767,32767,32767,32767,-82,32767,32767,32767,-272,-231,32767,32767,-281,-334,32767,32767,-316,-362,32767,-360,-448,32767,32767,-387,-437,-391,-437,32767,-612,32767,-648,-686,-821]} 1. d4 {[%emt 0:00:00] Krasenkow,M} d5 {[%emt 0:00:26]} 2. c4 {[%emt 0:00:00]} e6 {[%emt 0:00:45]} 3. Nc3 {[%emt 0:00:00]} Nf6 {[%emt 0:00:43]} 4. cxd5 {[%emt 0:00:00]} exd5 {[%emt 0:00:19]} 5. Bg5 {[%emt 0:00:00]} Nbd7 {[%emt 0:00:36]} 6. e3 {[%emt 0:00:04]} Be7 {[%emt 0:01:51]} 7. Bd3 {[%emt 0:02:20]} c6 {[%emt 0:02:14]} 8. Qc2 {[%emt 0:00:54]} O-O {[%emt 0:00:52]} 9. Nge2 {[%emt 0:00:05]} Re8 {[%emt 0:01:39]} 10. O-O {[%emt 0:00:14]} Nf8 {[%emt 0:07:50]} 11. Rae1 {[%emt 0:01:46]} g6 {[%emt 0:02:02]} 12. Bh4 {[%emt 0:05:34]} Ne6 {[%emt 0:04:32]} 13. f3 {[%emt 0:00:56] LiveBook: 13 Games} b6 {[%emt 0:14:48] [#] D36: Queen's Gambit Declined: Exchange Variation: Main line (5 Bg5 c6 6 Qc2)} 14. Na4 $146 {[%emt 0:03:55]} ({Predecessor:} 14. Kh1 Bb7 15. Qb3 Rc8 16. e4 c5 17. Bb5 Rf8 18. e5 Nh5 19. Bxe7 Qxe7 20. Nxd5 Bxd5 21. Qxd5 {0-1 (46) Jones,G (2665)-Bruzon Batista,L (2664) Tromsoe 2014 CBM 162 [Krasenkow,M]}) 14... Bb7 {[%emt 0:01:26]} 15. f4 {[%emt 0:09:42]} Ng4 {[%emt 0:04:50]} 16. Bf2 {[%emt 0:02:39]} f5 {[%emt 0:08:07]} 17. Bxf5 {[%emt 0:16:26]} gxf5 {[%emt 0:07:27]} 18. Qxf5 {[%emt 0:00:12]} Nxf2 {[%emt 0:00:23]} 19. Qxe6+ {[%emt 0:01:12]} Kh8 {[%emt 0:01:53]} 20. Rxf2 {[%emt 0:04:44]} Bb4 {[%emt 0:01:12]} 21. Qf7 {[%emt 0:00:36]} Bxe1 {[%emt 0:03:20]} 22. Rf1 {[%emt 0:00:01]} Qe7 {[%emt 0:06:25]} 23. Qxe7 {[%emt 0:00:44]} Rxe7 {[%emt 0:00:01]} 24. Rxe1 {[%emt 0:00:06]} Rxe3 {[%emt 0:00:38]} 25. Nac3 {[%emt 0:00:05]} Rae8 {[%emt 0:01:02]} 26. Kf2 {[%emt 0:01:44]} Ba6 {[%emt 0:00:24]} 27. b4 {[%emt 0:00:16]} Bc4 {[%emt 0:00:26]} 28. g3 {[%emt 0:00:28] [#]} c5 $19 {[%emt 0:00:21]} 29. bxc5 {[%emt 0:00:08]} bxc5 {[%emt 0:00:02]} 0-1